Cogmind - Beta 13 X1 @@@ ROGUE MODE // 2023.07.20 @ 01:55:55 Player: cptwinky Result: Destroyed by D-53 Grenadier with Mini Grenade Launcher Performance ------------- Evolutions (0) 0 Regions Visited (2) 400 Robots Destroyed (27) 135 Value Destroyed (646) 646 Prototype IDs (3) 60 Alien Tech Used (0) 0 Bonus (0) 0 TOTAL SCORE: 1241 Bonus ------- None Cogmind --------- Core Integrity 0/250 Matter 290/300 Energy 94/100 System Corruption 0% Temperature Cool (83) Movement Walking (120) Location -10/Mines Parts ------- > --- POWER (1) -------- (None) > --- PROPULSION (2) --- Aluminum Leg Aluminum Leg > --- UTILITY (2) ------ Disposable Heat Sink Medium Storage Unit > --- WEAPON (2) ------- Medium Laser Small Laser > --- INVENTORY (10) --- Light Nuclear Core Aluminum Leg Compact Wheel Large Storage Unit Medium Laser Medium Laser Particle Gun Datajack Peak State ------------ > --- POWER ------------ Light Nuclear Core > --- PROPULSION ------- Aluminum Leg Aluminum Leg > --- UTILITY ---------- Disposable Heat Sink Medium Storage Unit > --- WEAPON ----------- Small Laser Small Laser > --- INVENTORY -------- Light Nuclear Core Aluminum Leg Aluminum Leg Compact Wheel Large Storage Unit Medium Laser Medium Laser Medium Laser Small Laser Datajack [Rating: 11] Favorites ----------- Power Light Ion Engine Engine Light Ion Engine Power Core Light Nuclear Core Propulsion Aluminum Leg Leg Aluminum Leg Utility Medium Storage Unit Device Disposable Heat Sink Storage Medium Storage Unit Processor Targeting Computer Weapon Small Laser Energy Gun Small Laser Special Melee Weapon Datajack Build | -11 -10 -10 ------- Run | Jun Mat Min Slots Evolved . | . . . Power . | . . . Propulsion . | . . . Utility . | . . . Weapon . | . . . Parts Attached 19 | . 13 6 Power 2 | . 1 1 Engine 1 | . 1 . Core 1 | . . 1 Reactor . | . . . Propulsion 5 | . 2 3 Treads . | . . . Leg 5 | . 2 3 Wheel . | . . . Hover . | . . . Flight . | . . . Utility 4 | . 4 . Device 2 | . 2 . Storage 1 | . 1 . Processor 1 | . 1 . Hackware . | . . . Protection . | . . . Artifact . | . . . Weapon 8 | . 6 2 Energy Gun 6 | . 4 2 Energy Cannon . | . . . Ballistic Gun . | . . . Ballistic Cannon . | . . . Launcher . | . . . Special Weapon . | . . . Impact Weapon . | . . . Slashing Weapon . | . . . Piercing Weapon . | . . . Special Melee Weapon 2 | . 2 . Unidentified Prototypes . | . . . Parts Lost 4 | . 1 3 Power 1 | . . 1 Propulsion 1 | . . 1 Utility 1 | . 1 . Weapon 1 | . . 1 Highest Loss Streak 3 | . 1 3 To Critical Strikes . | . . . Average Slot Usage (%) 99 | . 99 99 Engine 10 | . 14 . Core 3 | . . 13 Leg 28 | . 28 28 Device 8 | . 6 14 Storage 14 | . 14 14 Processor 5 | . 7 . Energy Gun 27 | . 27 28 Naked Turns . | . . . Heaviest Build 18 | 10 16 18 Greatest Support 20 | 20 20 20 Greatest Overweight (x) . | . . . Average Overweight (x) . | . . . Largest Inventory Capacity 10 | 8 10 10 Average Capacity 9 | 8 9 10 Most Carried 10 | 6 10 10 Average Carried 8 | 6 8 9 Final Capacity 10 | 8 10 10 Final Carried 10 | 6 10 8 Class Distribution -------------------- 56% | Scavenger-Mutant 43% | Mutant Dominant Class ---------------- Mutant | -10/Materials Scavenger-Mutant | -10/Mines Resources | -11 -10 -10 ----------- Run | Jun Mat Min Matter Collected 360 | 200 120 40 Remotely . | . . . Salvage Created 860 | . 598 262 Parts 54 | . 38 16 Haulers Intercepted 1 | . 1 . Recyclers Shooed 2 | . 2 . Parts Field Recycled . | . . . Retrieved Matter . | . . . Parts Self-Destructed . | . . . Prevented . | . . . Kills | -11 -10 -10 ------- Run | Jun Mat Min Combat Hostiles Destroyed 24 | . 14 10 Guns 24 | . 14 10 Classes Destroyed 8 | . 6 2 Hauler 1 | . 1 . Recycler 1 | . 1 . Operator 1 | . 1 . Watcher 2 | . 2 . Swarmer 9 | . 6 3 Grunt 12 | . 8 4 Demolisher 1 | . . 1 Assembled 2 | . . 2 Best Kill Streak 3 | . 3 3 Combat Bots Only 3 | . 3 3 Max Kills in Single Turn 1 | . 1 1 Gunslinging . | . . . Exploded . | . . . Melee . | . . . Uniques/NPCs Destroyed . | . . . Combat | -11 -10 -10 -------- Run | Jun Mat Min Damage Taken 1176 | . 497 679 Core 255 | . 102 153 Absorbed by Shields . | . . . Regen/Repaired (Parts) 65 | . 65 . Core Remaining (%) 100 | 100 . . Volleys Fired 93 | . 62 31 Largest 2 | . 2 2 Hottest 90 | . 80 90 Shots Fired 186 | . 124 62 Gun 186 | . 124 62 Cannon . | . . . Launcher . | . . . Special . | . . . Kinetic . | . . . Thermal 186 | . 124 62 Explosive . | . . . Electromagnetic . | . . . Robot Hit Streak 9 | . 9 6 Robot Miss Streak 4 | . 3 4 Penetration Max . | . . . Secondary Targets 6 | . 2 4 Max Gunslinging Chain 1 | . 1 1 Shots Hit Robots 120 | . 82 38 Core Hits 52 | . 32 20 Critical Kills . | . . . Critical Parts Destroyed . | . . . Critical Strikes . | . . . Melee Attacks . | . . . Impact . | . . . Slashing . | . . . Piercing . | . . . Sneak Attacks . | . . . Combat Hostiles . | . . . Follow-up Attacks . | . . . Damage Inflicted 1388 | . 959 429 Guns 1359 | . 930 429 Cannons . | . . . Explosions . | . . . Melee . | . . . Ramming 29 | . 29 . Kinetic . | . . . Thermal 1359 | . 930 429 Explosive . | . . . Electromagnetic . | . . . Impact . | . . . Slashing . | . . . Piercing . | . . . Highest Corruption . | . . . Average Corruption . | . . . Corruption Purged . | . . . Corruption Blocked . | . . . Overload Shots . | . . . Overflow Damage . | . . . Projectiles . | . . . Explosions . | . . . Melee . | . . . Knockbacks . | . . . Impact . | . . . Kinetic . | . . . Secondary . | . . . Self-Inflicted Damage . | . . . Shots . | . . . Rammed . | . . . Targets Rammed 7 | . 7 . Kicked 7 | . 7 . Crushed . | . . . Highest Temperature 192 | . 168 192 Average Temperature 66 | . 51 85 Received Heat Transfer 333 | . 177 156 Siege Activations . | . . . Robots Corrupted . | . . . Combat Hostiles . | . . . Parts Fried . | . . . Impact Corruptions . | . . . Robots Melted . | . . . Combat Hostiles . | . . . Parts Melted 2 | . 2 . Heat Transferred 3061 | . 2075 986 Parts Sabotaged . | . . . Parts Stolen . | . . . Parts Stripped . | . . . Power Chain Reactions . | . . . Missiles Intercepted . | . . . Alert | -11 -10 -10 ------- Run | Jun Mat Min Peak Influence 250 | . 250 155 Initial 25 | . . 25 Average 68 | . 70 61 Maximum Alert Level 1 | . 1 . Low Security (%) 96 | 100 95 100 Level 1 3 | . 4 . Level 2 . | . . . Level 3 . | . . . Level 4 . | . . . Level 5 . | . . . High Security . | . . . Max Security . | . . . Squads Dispatched 3 | . 3 . Investigation 2 | . 2 . Extermination . | . . . Reinforcement 1 | . 1 . Assault . | . . . Garrison . | . . . Intercept . | . . . Searches Triggered . | . . . Construction Impeded . | . . . Haulers Reinforced . | . . . Active Scanning Responses . | . . . Cargo Convoy Interrupts . | . . . Stealth | -11 -10 -10 --------- Run | Jun Mat Min Distress Signals 2 | . 2 . Communications Jammed . | . . . Distress Signals . | . . . Times Spotted 38 | . 28 10 Peak Tracking Total 4 | . 4 3 Tactical Retreats 3 | . 3 . Traps | -11 -10 -10 ------- Run | Jun Mat Min Traps Triggered . | . . . Indirectly . | . . . Trap Hack Attempts 20 | . 20 . Triggered . | . . . Disarmed . | . . . Reprogrammed 2 | . 2 . Reused . | . . . Traps Extracted . | . . . Installed . | . . . Triggered . | . . . Machines | -11 -10 -10 ---------- Run | Jun Mat Min Machines Disabled . | . . . Max in Single Turn . | . . . Machines Repaired . | . . . Machines Sabotaged . | . . . Overloaded Fab Kills . | . . . Hacking | -11 -10 -10 --------- Run | Jun Mat Min Machines Accessed 9 | . 9 . Terminals 7 | . 7 . Fabricators . | . . . Repair Stations 1 | . 1 . Recycling Units 1 | . 1 . Scanalyzers . | . . . Garrison Access . | . . . Total Hacks 24 | . 24 . Successful 13 | . 13 . Failed 11 | . 11 . Catastrophic 2 | . 2 . Database Lockouts . | . . . Manual 15 | . 15 . Terminals 18 | . 18 . Fabricators . | . . . Repair Stations 4 | . 4 . Recycling Units 2 | . 2 . Scanalyzers . | . . . Garrison Access . | . . . Terminal Hacks 7 | . 7 . Part Schematic 1 | . 1 . Robot Analysis 3 | . 3 . Prototype ID Bank 2 | . 2 . Locate Traps 1 | . 1 . Fabricator Hacks . | . . . Repair Station Hacks 2 | . 2 . Scan Component 1 | . 1 . Repair 1 | . 1 . Recycling Unit Hacks 1 | . 1 . Retrieve Components 1 | . 1 . Scanalyzer . | . . . Garrison Access Hacks . | . . . Unauthorized Hacks 3 | . 3 . Terminals 2 | . 2 . Assimilate 1 | . 1 . Botnet 1 | . 1 . Fabricators . | . . . Repair Stations . | . . . Recycling Units 1 | . 1 . Tunnel 1 | . 1 . Scanalyzers . | . . . Garrison Access . | . . . Data Cores Recovered . | . . . Used . | . . . Hacking Detections 8 | . 8 . Full Trace Events 1 | . 1 . Feedback Events . | . . . Feedback Blocked . | . . . Robot Schematics Acquired . | . . . Robots Built . | . . . Authchips . | . . . Time . | . . . Total Robot Build Rating . | . . . Part Schematics Acquired 1 | . 1 . Parts Built . | . . . Authchips . | . . . Time . | . . . Total Part Build Rating . | . . . Parts Repaired 1 | . 1 . Time 26 | . 26 . Parts Recycled . | . . . Recycled Matter . | . . . Retrieved Matter . | . . . Retrieved Components . | . . . Parts Scanalyzed . | . . . Part Schematics Acquired . | . . . Parts Damaged . | . . . Bothacking | -11 -10 -10 ------------ Run | Jun Mat Min Used RIF Installer . | . . . Robots Hacked . | . . . Non-combat . | . . . Combat . | . . . Robot Hacks Applied . | . . . Relay Couplers Released . | . . . Fabnet Peak Effective % . | . . . Robots Rewired . | . . . Allies Hacked . | . . . Hacks Repelled . | . . . Allies | -11 -10 -10 -------- Run | Jun Mat Min Total Allies 1 | . 1 . Largest Group 1 | . 1 1 Highest-Rated Group 10 | . 10 10 Highest-Rated Ally 10 | . 10 10 Total Orders 8 | . 4 4 STAY 6 | . 2 4 FOLLOW 2 | . 2 . Ally Attacks . | . . . Total Damage . | . . . Kills . | . . . Allies Corrupted . | . . . Allies Melted . | . . . Intel | -11 -10 -10 ------- Run | Jun Mat Min Robot Analysis Total 3 | . 3 . Derelict Logs Recovered 1 | . . 1 Drone Launches . | . . . Drone Recoveries . | . . . Exploration | -11 -10 -10 ------------- Run | Jun Mat Min Turns Passed 2494 | 5 1867 622 Spaces Moved 1369 | 5 1087 277 Core . | . . . Treads . | . . . Legs 1369 | 5 1087 277 Wheels . | . . . Hover . | . . . Flight . | . . . Fastest Speed 120 | 120 120 120 Average Speed 120 | 120 120 120 Slowest Speed 120 | 120 120 120 Overloaded Moves . | . . . Propulsion Burnouts . | . . . Robots Hopped . | . . . Cave-ins Triggered . | . . . Exploration Rate (%) 50 | 2 97 51 Regions Visited 2 Branch Regions 1 Pre-discovered Areas 2 | . 1 1 Known Exits Taken . | . . . Unknown Exits Taken 2 | 1 1 . Scrap Searched . | . . . Spaces Dug . | . . . Terrain Destroyed . | . . . Melee . | . . . Projectile . | . . . AOE . | . . . Terrain Rammed . | . . . Walls Destroyed . | . . . Machines Disabled . | . . . Actions | -11 -10 -10 --------- Run | Jun Mat Min Total 2034 | 4 1524 506 Wait 501 | . 315 186 Move 1367 | 4 1086 277 Hop . | . . . Pick Up 13 | . 11 2 Fast Attach 2 | . 2 . Attach 5 | . 2 3 Detach . | . . . Swap 12 | . 9 3 Drop 14 | . 10 4 Fire 93 | . 62 31 Melee . | . . . Ram . | . . . Kick 7 | . 7 . Crush . | . . . Escape Stasis . | . . . Rewire . | . . . Trap 20 | . 20 . Miscellaneous . | . . . Route ------- -11/Junkyard -10/Materials (discovered 5 exits: [*Mat x3] / [*Min] / [*Sub]) -10/Mines (discovered 1 exit: [*Mat]) History --------- Turn | Location | Event 1 | -11/Junkyard | Discovered new exit (range 3) 6 | -11/Junkyard | Entered Materials 175 | -10/Materials | Discovered new exit (range 5) 305 | -10/Materials | Build established: Mutant 784 | -10/Materials | Discovered new exit (range 9) 823 | -10/Materials | Discovered new exit (range 8) 1100 | -10/Materials | Derelicts attacked the area 1109 | -10/Materials | Discovered new exit (range 12) 1310 | -10/Materials | Discovered new exit (range 16) 1364 | -10/Materials | Build established: Scavenger-Mutant 1767 | -10/Materials | Repaired Aluminum Leg 1873 | -10/Materials | Entered Mines 1873 | -10/Mines | Accompanied by 1 ally 1945 | -10/Mines | Assembled infested the area 2223 | -10/Mines | Core integrity fell below 50% 2314 | -10/Mines | Discovered new exit (range 15) 2396 | -10/Mines | Learned location of Storage (-8) 2485 | -10/Mines | Core integrity fell below 20% 2495 | -10/Mines | Destroyed by D-53 Grenadier with Mini Grenade Launcher Last Messages --------------- 02258_ U-05 Engineer destroyed. 02277_ as-43114 destroyed. 02295_ K-01 Serf collects debris. 02314_ EXIT=FOUND 02315_ K-01 Serf collects debris. 02396_ Acquired derelict log, extracted data. World map updated: -8/Storage. 02431_ S-10 Pest destroyed. 02431_ Switching to secondary target: S-10 Pest. 02443_ S-10 Pest destroyed. 02443_ Switching to secondary target: S-10 Pest. 02449_ S-10 Pest destroyed. 02481_ Sml. Laser destroyed. 02482_ D-53 Grenadier destroyed. 02482_ Switching to secondary target: D-53 Grenadier. 02484_ Aluminum Leg destroyed. 02488_ The unstable cave ceiling collapses. 02488_ Lgt. Nuclear Core destroyed. 02488_ T-07 Excavator destroyed. 02493_ The unstable cave ceiling collapses. Map ----- +----------------------------------------------------+ | ????????????????????????????????????????????? | | ????????????????????????????????????????????? | | ????????????????????????????????????????????? | | ????????????????????????????????????????????? | | ????????????????????????????????????????????? | | ????????????????????????????????????????????? | | ???????? ???????????????????????#??????????? | | ???????? ?????????????????????? #??????????? | | ???????? #?????????????###????? ##?????????? | | ???????? #????????????? #???? ##????????? | | ???????? #????????????# #### #????????? | | ???????? #????????????? #???? #??? | | ???????? #????????# ???? ### ????? | | ???????# #????????# #### ??????? | | ???????# #????????? """ ????????? | | #??????# #???????????? """ #?????????? | | #??????# ##?????????????# """ #??????????? | | #??????# #?????????????# #????????????? | | #??????# #?????????????# d ##????????????? | | #?????## #???####??????## #?????????????? | | #????## #????# ##???### #?????????????? | | ????## ##??## ##?## #?????????????? | | ##### #### ### ##?????????????? | | # #?????????????? | | ##### ##### *# #?????????????? | | ????######???## [=%% @ #?????????????? | | ??????????????### %#| # #?????????????? | | ????????????????#### # #?????????????? | | ???????????????????# ##?????????????? | | ???????????????????#### ##??????????????? | | ??????????????????????#######???????????????? | | | | | | | | | | | | | | | | | | | | | | | | | | | | | | | | | | | | | | | +----------------------------------------------------+ Best States ------------- Heat Dissipation 35 Coolant Potential 50 Energy Generation 14 Energy Capacity 160 Matter Stores 300 Matter Capacity 300 Sight Range 16 Terrain Scan Density 10 Evasion (%) 55 Targeting Accuracy 5 Item Schematics ----------------- Hcp. Storage Unit | -10/Materials | Hacked Robot Schematics ------------------ None Fabricated ------------ Nothing Alien Tech Used ----------------- None Achievements -------------- None Challenges ------------ None Game ------ Seed LinearPotentialRailgun Manual? 0 Play Time 00:13:33 Cumulative 1360.5 hours Start 2023.07.20 @ 01:43:11 End 2023.07.20 @ 01:55:55 Sessions 1 Manual Loads 0 Difficulty Rogue Special Mode None Game No. 969 Rogue 965 Adventurer 4 Explorer 0 Win Type - Total 157 Types 116/10/10/7/2/1/1/6/4 Lore% 95 Gallery% 98 Achievement% 98 Wizard Run 0 Options --------- ASCII 0 Keyboard 1 Movement Vi Keybinds 0 Fullscreen 0 Font 20/X11 Map View 76x50 Tactical HUD 1 Map Filters NONE Filters NONE Steam 1 RUN: 5c1ee5c7-b78b-4617-935f-999b3f2a4274